Cogmind - Beta 13 @@@ ROGUE MODE // 2024.04.10 @ 00:02:06 Player: Copyrite Result: Destroyed by HR-L93(R) with Subdweller Shrapnel Launcher Performance ------------- Evolutions (0) 0 Regions Visited (2) 400 Robots Destroyed (11) 55 Value Destroyed (206) 206 Prototype IDs (0) 0 Alien Tech Used (0) 0 Bonus (0) 0 TOTAL SCORE: 661 Bonus ------- None Cogmind --------- Core Integrity 0/250 Matter 175/300 Energy 99/100 System Corruption 0% Temperature Cool (0) Movement Core (50) Location -10/Subcaves Parts ------- > --- POWER (1) -------- (None) > --- PROPULSION (2) --- (None) > --- UTILITY (2) ------ (None) > --- WEAPON (2) ------- Assault Rifle > --- INVENTORY (5) ---- Terrain Scanner Shield Generator Datajack Peak State ------------ > --- POWER ------------ Ion Engine > --- PROPULSION ------- Light Treads Light Treads > --- UTILITY ---------- Small Storage Unit Shield Generator > --- WEAPON ----------- Assault Rifle Heavy Hammer > --- INVENTORY -------- Ion Engine Aluminum Leg Aluminum Leg Medium Laser Small Laser [Rating: 9] Favorites ----------- Power Ion Engine Engine Ion Engine Propulsion Light Treads Treads Light Treads Wheel Subdweller Monowheel Flight Unit Flight Unit Utility Small Storage Unit Device Shield Generator Storage Small Storage Unit Weapon Assault Rifle Ballistic Gun Assault Rifle Launcher Grenade Launcher Impact Weapon Heavy Hammer Build | -11 -10 -10 ------- Run | Yrd Mat Sub Slots Evolved . | . . . Power . | . . . Propulsion . | . . . Utility . | . . . Weapon . | . . . Parts Attached 14 | 5 5 4 Power 2 | 1 . 1 Engine 2 | 1 . 1 Core . | . . . Reactor . | . . . Propulsion 5 | 2 2 1 Treads 2 | 2 . . Leg . | . . . Wheel 1 | . . 1 Hover . | . . . Flight 2 | . 2 . Utility 2 | 1 1 . Device 1 | . 1 . Storage 1 | 1 . . Processor . | . . . Hackware . | . . . Protection . | . . . Artifact . | . . . Weapon 5 | 1 2 2 Energy Gun . | . . . Energy Cannon . | . . . Ballistic Gun 3 | 1 1 1 Ballistic Cannon . | . . . Launcher 1 | . . 1 Special Weapon . | . . . Impact Weapon 1 | . 1 . Slashing Weapon . | . . . Piercing Weapon . | . . . Special Melee Weapon . | . . . Unidentified Prototypes . | . . . Parts Lost 5 | . . 5 Power 1 | . . 1 Propulsion 3 | . . 3 Utility . | . . . Weapon 1 | . . 1 Highest Loss Streak 3 | . . 3 To Critical Strikes . | . . . Average Slot Usage (%) 89 | . 95 44 Engine 13 | . 14 12 Treads 23 | . 26 . Flight 3 | . 1 12 Device 11 | . 12 . Storage 11 | . 13 . Ballistic Gun 13 | . 13 10 Impact Weapon 10 | . 12 . Naked Turns . | . . . Heaviest Build 17 | 12 17 8 Greatest Support 40 | 40 40 20 Greatest Overweight (x) 2 | . . 2 Average Overweight (x) . | . . . Largest Inventory Capacity 8 | 8 8 5 Average Capacity 7 | 6 7 5 Most Carried 8 | 5 8 5 Average Carried 5 | 3 6 4 Final Capacity 8 | 8 5 5 Final Carried 5 | 5 5 3 Class Distribution -------------------- 100% | Mutant Dominant Class ---------------- Mutant | -10/Materials Mutant | -10/Subcaves Resources | -11 -10 -10 ----------- Run | Yrd Mat Sub Matter Collected 362 | 221 109 32 Remotely . | . . . Salvage Created 211 | . 120 91 Parts 15 | . 8 7 Haulers Intercepted . | . . . Recyclers Shooed . | . . . Parts Field Recycled . | . . . Retrieved Matter . | . . . Parts Self-Destructed 3 | . . 3 Prevented . | . . . Kills | -11 -10 -10 ------- Run | Yrd Mat Sub Combat Hostiles Destroyed 10 | . 7 3 Melee 2 | . 2 . Guns 4 | . 4 . AOE 3 | . . 3 Classes Destroyed 3 | . 2 1 Watcher 1 | . 1 . Swarmer 7 | . 7 . Subdweller 3 | . . 3 Best Kill Streak 3 | . 3 3 Combat Bots Only 3 | . 3 3 Max Kills in Single Turn 1 | . 1 1 Gunslinging . | . . . Exploded 1 | . . 1 Melee 1 | . 1 . Uniques/NPCs Destroyed . | . . . Combat | -11 -10 -10 -------- Run | Yrd Mat Sub Hostile Shots Fired 62 | . 35 27 Missed 16 | . 8 8 Damage Taken 704 | . 154 550 Core 262 | . 16 246 Absorbed by Shields 65 | . 65 . Regen/Repaired (Parts) 40 | . 40 . Core Remaining (%) 100 | 100 . . Volleys Fired 34 | . 20 14 Largest 1 | . 1 1 Hottest 30 | . 20 30 Shots Fired 34 | . 20 14 Gun 24 | . 20 4 Cannon . | . . . Launcher 10 | . . 10 Special . | . . . Kinetic 24 | . 20 4 Thermal . | . . . Explosive 10 | . . 10 Electromagnetic . | . . . Robot Hit Streak 6 | . 4 6 Robot Miss Streak 4 | . 4 1 Penetration Max . | . . . Secondary Targets . | . . . Shots Hit Robots 25 | . 18 7 Core Hits 9 | . 5 4 Critical Kills . | . . . Critical Parts Destroyed 1 | . 1 . Critical Strikes 1 | . 1 . Smash 1 | . 1 . Melee Attacks 14 | . 14 . Impact 14 | . 14 . Slashing . | . . . Piercing . | . . . Sneak Attacks . | . . . Combat Hostiles . | . . . Follow-up Attacks . | . . . Damage Inflicted 838 | . 447 391 Guns 153 | . 138 15 Cannons . | . . . Explosions 376 | . . 376 Melee 309 | . 309 . Ramming . | . . . Kinetic 153 | . 138 15 Thermal . | . . . Explosive 376 | . . 376 Electromagnetic . | . . . Impact 309 | . 309 . Slashing . | . . . Piercing . | . . . Highest Corruption . | . . . Average Corruption . | . . . Corruption Purged . | . . . Corruption Blocked . | . . . Overload Shots . | . . . Overflow Damage 128 | . 128 . Projectiles . | . . . Explosions . | . . . Melee 128 | . 128 . Knockbacks . | . . . Impact . | . . . Kinetic . | . . . Secondary . | . . . Self-Inflicted Damage 7 | . . 7 Shots 1 | . . 1 Rammed . | . . . Targets Rammed . | . . . Kicked . | . . . Crushed . | . . . Highest Temperature . | . . . Average Temperature . | . . . Received Heat Transfer 54 | . . 54 Siege Activations . | . . . Robots Corrupted . | . . . Combat Hostiles . | . . . Parts Fried 3 | . 3 . Impact Corruptions 6 | . 6 . Robots Melted . | . . . Combat Hostiles . | . . . Parts Melted . | . . . Heat Transferred . | . . . Parts Sabotaged . | . . . Parts Stolen . | . . . Parts Stripped . | . . . Power Chain Reactions . | . . . Alert | -11 -10 -10 ------- Run | Yrd Mat Sub Peak Influence 140 | . 140 . Initial . | . . . Average 63 | . 69 . Maximum Alert Level . | . . . Low Security (%) 100 | 100 100 . Level 1 . | . . . Level 2 . | . . . Level 3 . | . . . Level 4 . | . . . Level 5 . | . . . High Security . | . . . Max Security . | . . . Squads Dispatched . | . . . Investigation . | . . . Extermination . | . . . Reinforcement . | . . . Assault . | . . . Garrison . | . . . Intercept . | . . . Searches Triggered . | . . . Construction Impeded . | . . . Haulers Reinforced . | . . . Active Scanning Responses . | . . . Cargo Convoy Interrupts . | . . . Stealth | -11 -10 -10 --------- Run | Yrd Mat Sub Distress Signals . | . . . Communications Jammed . | . . . Distress Signals . | . . . Times Spotted 20 | . 15 5 Peak Tracking Total 4 | . 4 3 Tactical Retreats 2 | . 1 1 Traps | -11 -10 -10 ------- Run | Yrd Mat Sub Traps Triggered . | . . . Indirectly . | . . . Trap Hack Attempts . | . . . Triggered . | . . . Disarmed . | . . . Reprogrammed . | . . . Reused . | . . . Traps Extracted . | . . . Installed . | . . . Triggered . | . . . Machines | -11 -10 -10 ---------- Run | Yrd Mat Sub Machines Disabled . | . . . Max in Single Turn . | . . . Machines Repaired . | . . . Machines Dismantled . | . . . Machines Sabotaged . | . . . Overloaded Fab Kills . | . . . Hacking | -11 -10 -10 --------- Run | Yrd Mat Sub Machines Accessed 4 | . 4 . Terminals 3 | . 3 . Fabricators . | . . . Repair Stations 1 | . 1 . Recycling Units . | . . . Scanalyzers . | . . . Garrison Access . | . . . Total Hacks 11 | . 11 . Successful 7 | . 7 . Failed 4 | . 4 . Catastrophic . | . . . Database Lockouts . | . . . Manual 7 | . 7 . Terminals 7 | . 7 . Fabricators . | . . . Repair Stations 4 | . 4 . Recycling Units . | . . . Scanalyzers . | . . . Garrison Access . | . . . Terminal Hacks . | . . . Fabricator Hacks . | . . . Repair Station Hacks 4 | . 4 . Scan Component 2 | . 2 . Repair 2 | . 2 . Recycling Unit Hacks . | . . . Scanalyzer . | . . . Garrison Access Hacks . | . . . Unauthorized Hacks 3 | . 3 . Terminals 3 | . 3 . Botnet 3 | . 3 . Fabricators . | . . . Repair Stations . | . . . Recycling Units . | . . . Scanalyzers . | . . . Garrison Access . | . . . Data Cores Recovered . | . . . Used . | . . . Hacking Detections 3 | . 3 . Full Trace Events . | . . . Feedback Events . | . . . Feedback Blocked . | . . . Robot Schematics Acquired . | . . . Robots Built . | . . . Authchips . | . . . Time . | . . . Total Robot Build Rating . | . . . Part Schematics Acquired . | . . . Parts Built . | . . . Authchips . | . . . Time . | . . . Total Part Build Rating . | . . . Parts Repaired 2 | . 2 . Time 52 | . 52 . Parts Recycled . | . . . Recycled Matter . | . . . Retrieved Matter . | . . . Retrieved Components . | . . . Parts Scanalyzed . | . . . Part Schematics Acquired . | . . . Parts Damaged . | . . . Bothacking | -11 -10 -10 ------------ Run | Yrd Mat Sub Used RIF Installer . | . . . Robots Hacked . | . . . Non-combat . | . . . Combat . | . . . Robot Hacks Applied . | . . . Relay Couplers Released . | . . . Fabnet Peak Effective % . | . . . Robots Rewired . | . . . Allies Hacked . | . . . Hacks Repelled . | . . . Allies | -11 -10 -10 -------- Run | Yrd Mat Sub Total Allies . | . . . Largest Group . | . . . Highest-Rated Group . | . . . Highest-Rated Ally . | . . . Total Orders . | . . . Ally Attacks . | . . . Total Damage . | . . . Kills . | . . . Allies Corrupted . | . . . Allies Melted . | . . . Intel | -11 -10 -10 ------- Run | Yrd Mat Sub Robot Analysis Total . | . . . Derelict Logs Recovered . | . . . Drone Launches . | . . . Drone Recoveries . | . . . Exploration | -11 -10 -10 ------------- Run | Yrd Mat Sub Turns Passed 1005 | 86 807 112 Spaces Moved 585 | 48 371 166 Core 19 | 2 . 17 Treads 383 | 46 337 . Legs . | . . . Wheels 8 | . . 8 Hover . | . . . Flight 175 | . 34 141 Fastest Speed 37 | 50 37 37 Average Speed 120 | 155 148 48 Slowest Speed 160 | 160 160 150 Overloaded Moves . | . . . Propulsion Burnouts . | . . . Robots Hopped . | . . . Cave-ins Triggered . | . . . Exploration Rate (%) 21 | 4 45 16 Regions Visited 2 Branch Regions 1 Pre-discovered Areas 1 | . . 1 Known Exits Taken . | . . . Unknown Exits Taken 2 | 1 1 . Scrap Searched 1 | . . 1 Spaces Dug 4 | . 4 . Terrain Destroyed 46 | . 4 42 Melee 4 | . 4 . Projectile . | . . . AOE 42 | . . 42 Terrain Rammed . | . . . Walls Destroyed . | . . . Machines Disabled . | . . . Actions | -11 -10 -10 --------- Run | Yrd Mat Sub Total 827 | 58 584 185 Wait 158 | . 158 . Move 583 | 47 370 166 Hop . | . . . Pick Up 13 | 6 7 . Fast Attach 8 | 4 3 1 Attach 5 | 1 2 2 Detach 1 | . 1 . Swap 1 | . . 1 Drop 10 | . 9 1 Fire 34 | . 20 14 Melee 14 | . 14 . Ram . | . . . Kick . | . . . Crush . | . . . Escape Stasis . | . . . Rewire . | . . . Trap . | . . . Miscellaneous . | . . . Route ------- -11/Scrapyard -10/Materials (discovered 3 exits: [*Mat] / [*Min] / [*Sub]) -10/Subcaves History --------- Turn | Location | Event 9 | -11/Scrapyard | Discovered new exit (range 13) 87 | -11/Scrapyard | Entered Materials 316 | -10/Materials | Build established: Mutant 454 | -10/Materials | Discovered new exit (range 16) 600 | -10/Materials | Discovered new exit (range 14) 846 | -10/Materials | Repaired Flight Unit 878 | -10/Materials | Repaired Assault Rifle 886 | -10/Materials | Discovered new exit (range 11) 894 | -10/Materials | Entered Subcaves 949 | -10/Subcaves | Learned location of Zion (-7) 949 | -10/Subcaves | Met a Zionite searching for "candidates" 962 | -10/Subcaves | Shifting Twisted Machinery released Barrage Gun 981 | -10/Subcaves | Core integrity fell below 50% 1003 | -10/Subcaves | Core integrity fell below 20% 1006 | -10/Subcaves | Destroyed by HR-L93(R) with Subdweller Shrapnel Launcher Last Messages --------------- Subatomizers dissect the Ion Engine. D6-JBA(R) suffers critical hit (Destroy). Flight Unit destroyed. Searching scrap... Found Sub. Monowheel. Found 32 Matter. Barrage Gun falls loose from the Twisted Machinery. Acquired 20 matter. Acquired 10 matter. Acquired Sub. Monowheel. Acquired 2 matter. D6-JBA(R) destroyed. 9W-JOY(R) destroyed. The unstable cave ceiling collapses. ZX-5KK(R) destroyed. HR-L93(R): "SLEEPOVER!" Grenade Launcher destroyed. Ion Engine destroyed. Sub. Monowheel destroyed. Map ----- +----------------------------------------------------+ | ?????????????????????????????????????????????????? | | ?????????????????????????????????????????????????? | | ?????????????????????????????????????????????????? | | ?????????????????????????????????????????????????? | | ?????????????????????????????????????????????????? | | ?????????????###?????????????????????????????????? | | ?????????????# #?????????????????????????????????? | | ?? ???????### ##????????????????????????????????? | | ??? ???## #????????????????????????????????? | | ???# ??# ##??????##????????????????????????? | | ?### #??# *#??????# #????????????????????????? | | ## #?## ##????# ????????????????????????? | | # ### #????# ###??????????????????????? | | # #????# ##????????????????????? | | # #????# #????????????????????? | | #????# ????????????????????? | | ## #?#### ##???????????????????? | | #### ### #???????????????????? | | #### R ????????????????????? | | ## [ ????????????????????? | | %& ###??????????????????? | | ## #??????????????????? | | ## ## ! #??????????????????? | | ########## !% ##?????""??????????? | | ######???????# ####" """?????????? | | # #???????????# @ "" " "???????? | | ##????????????# "" [ "???????? | | ##????????###??# # ## "" #???????? | | ##????????## #?? # #?### #####???????? | | ?????????## #?# # *[ #????? #??????????? | | ?######### ### ####[ %!##???????#??????????? | | ## ## ## " #"" ???????????????????? | | """###""" ??????????????????? | | #????????""" ?????????????????? | | #### ## #????????"#"# ?????????????????? | | #??###### ##???????"???##????????????????? | | ##???????# #?????????????????????????????? | | "????????# ## #?????????????????????????????? | | ????????## #?? #??????#?????????????????????? | | ?????????### ######??????? ????????????????????? | | ???????????# ##???????? "??????????????????? | | ??????????## #???????? ""?????????????????? | | " ???????????## ##???????? ""?????????????????? | | ##????????????## #????????" #????????????????? | | ???????????????# #????????? ????????????????? | | ???????????????## ####??????# #????????????????? | | ????????????????# ""##?????# ##???????##??????? | | ?????????????##### """#????##" ######## ####???? | | ?????????????# ## #????# " ## # ##??? | | ?????????????# #???##"" #??? | +----------------------------------------------------+ Best States ------------- Heat Dissipation 25 Energy Generation 10 Energy Capacity 250 Matter Stores 300 Matter Capacity 300 Sight Range 16 Terrain Scan Density 10 Evasion (%) 62 Recoil Reduction 2 Item Schematics ----------------- None Robot Schematics ------------------ None Fabricated ------------ Nothing Alien Tech Used ----------------- None Achievements -------------- None Challenges ------------ None Game ------ Seed PortableColdDiverter Manual? 0 Play Time 00:11:38 Cumulative 16.6 hours Start 2024.04.09 @ 23:53:02 End 2024.04.10 @ 00:02:06 Sessions 1 Manual Loads 0 Difficulty Rogue Special Mode None Game No. 32 Rogue 32 Adventurer 0 Explorer 0 Win Type - Total 0 Types 0/0/0/0/0/0/0/0/0 Lore% 14 Gallery% 21 Achievement% 22 Wizard Run 0 Options --------- Layout 1 ASCII 0 Keyboard 0 Movement Numpad Keybinds 0 Fullscreen 1 Font 32/SmallcapsGlow Map View 50x35 Zoom Use 0% Tactical HUD 0 Map Filters NONE Filters NONE Steam 1 RUN: de70bec5-9c1e-461e-a0ce-f693f2294baf